Cogmind - Beta 17 @@@ ROGUE MODE // 2026.07.06 @ 00:10:50 Player: Ammie Result: Self-destructed Performance ------------- Evolutions (1) 500 Regions Visited (2) 400 Robots Destroyed (33) 165 Value Destroyed (891) 891 Prototype IDs (0) 0 Alien Tech Used (0) 0 Bonus (0) 0 TOTAL SCORE: 1956 Bonus ------- None Cogmind --------- Core Integrity 130/400 Matter 6/300 Energy 250/250 System Corruption 16% Temperature Cool (0) Movement Walking (680) Ox8 Location -9/Materials Parts ------- > --- POWER (1) -------- Ion Engine > --- PROPULSION (3) --- Aluminum Leg > --- UTILITY (3) ------ Huge Storage Unit > --- WEAPON (2) ------- Grenade Launcher > --- INVENTORY (25) --- Ion Engine Heat Sink Grenade Launcher Grenade Launcher Datajack Peak State ------------ > --- POWER ------------ Ion Engine > --- PROPULSION ------- Light Treads Light Treads Light Treads > --- UTILITY ---------- Huge Storage Unit Sensor Array Terrain Scanner > --- WEAPON ----------- Light Cannon Light Cannon > --- INVENTORY -------- Ion Engine Ion Engine Heat Sink EM Pulse Gun EM Pulse Gun Assault Rifle Assault Rifle Assault Rifle Grenade Launcher Grenade Launcher Grenade Launcher Datajack [Rating: 10] Favorites ----------- Power Ion Engine Engine Ion Engine Propulsion Light Treads Treads Light Treads Leg Aluminum Leg Utility Huge Storage Unit Device Sensor Array Storage Huge Storage Unit Weapon Light Cannon Energy Gun EM Pulse Gun Ballistic Gun Assault Rifle Ballistic Cannon Light Cannon Launcher Grenade Launcher Build | -11 -10 -9 ------- Run | Yrd Mat Mat Slots Evolved 2 | . . 2 Power . | . . . Propulsion 1 | . . 1 Utility 1 | . . 1 Weapon . | . . . Parts Attached 22 | 6 7 9 Power 2 | 1 . 1 Engine 2 | 1 . 1 Core . | . . . Reactor . | . . . Propulsion 5 | 2 . 3 Treads 3 | 2 . 1 Leg 2 | . . 2 Wheel . | . . . Hover . | . . . Flight . | . . . Utility 6 | 1 4 1 Device 3 | . 2 1 Storage 3 | 1 2 . Processor . | . . . Hackware . | . . . Protection . | . . . Artifact . | . . . Weapon 9 | 2 3 4 Energy Gun 2 | . . 2 Energy Cannon . | . . . Ballistic Gun 3 | 2 . 1 Ballistic Cannon 2 | . 2 . Launcher 2 | . 1 1 Special Weapon . | . . . Impact Weapon . | . . . Slashing Weapon . | . . . Piercing Weapon . | . . . Special Melee Weapon . | . . . Unidentified Prototypes . | . . . Parts Lost 15 | . 1 14 Power 1 | . . 1 Propulsion 4 | . . 4 Utility 3 | . 1 2 Weapon 7 | . . 7 Highest Loss Streak 10 | . 1 10 To Critical Strikes . | . . . Average Backups 10 | . 11 8 Power 1 | . 1 1 Propulsion . | . . . Utility 1 | . 1 1 Weapon 6 | . 6 5 Tool/Special . | . . . Unused Backups 4 | . . 4 Power 1 | . . 1 Propulsion . | . . . Utility 1 | . . 1 Weapon 1 | . . 1 Tool/Special 1 | . . 1 Average Slot Usage (%) 94 | . 97 59 Engine 13 | . 14 10 Treads 26 | . 28 9 Device 11 | . 11 6 Storage 13 | . 14 11 Ballistic Gun 1 | . 1 10 Ballistic Cannon 24 | . 26 5 Peak Build Rating 10 | 6 8 10 Average Rating 7 | 4 7 5 On Entrance 4 | . 6 8 Avg Prop Armor Cover (%) . | . . . Naked Turns . | . . . Heaviest Build 93 | 14 92 93 Greatest Support 60 | 40 40 60 Greatest Overweight (x) 29 | 2 2 29 Average Overweight (x) 1 | . 1 7 Largest Inventory Capacity 25 | 8 25 25 Average Capacity 22 | 7 22 25 Most Carried 15 | 1 15 13 Average Carried 10 | . 11 8 Final Capacity 25 | 8 25 25 Final Carried 14 | 1 14 5 Class Distribution -------------------- 100% | Mutant Dominant Class ---------------- Mutant | -10/Materials Mutant | -9/Materials Resources | -11 -10 -9 ----------- Run | Yrd Mat Mat Matter Collected 699 | 225 421 53 Remotely . | . . . Salvage Created 960 | . 524 436 Parts 63 | . 33 30 Haulers Intercepted 2 | . 2 . Recyclers Shooed . | . . . Parts Field Recycled . | . . . Retrieved Matter . | . . . Parts Self-Destructed . | . . . Prevented . | . . . Parts Restored . | . . . Kills | -11 -10 -9 ------- Run | Yrd Mat Mat Combat Hostiles Destroyed 25 | . 14 11 Guns 10 | . 1 9 Cannons 13 | . 13 . AOE 2 | . . 2 Classes Destroyed 8 | . 6 2 Builder 1 | . . 1 Hauler 2 | . 2 . Recycler 1 | . 1 . Operator 1 | . 1 . Watcher 3 | . 3 . Swarmer 6 | . 6 . Grunt 17 | . 8 9 Brawler 2 | . . 2 Best Kill Streak 6 | . 3 6 Combat Bots Only 6 | . 3 6 Max Kills in Single Turn 2 | . 2 2 Gunslinging . | . . . Exploded 1 | . . 1 Melee . | . . . Uniques/NPCs Destroyed . | . . . Combat | -11 -10 -9 -------- Run | Yrd Mat Mat Hostile Shots Fired 179 | . 43 136 Missed 41 | . 12 29 Hits 138 | . 31 107 Melee 9 | . . 9 Projectile 129 | . 31 98 Critical Strikes 1 | . . 1 Damage Taken 1811 | . 402 1409 Core 317 | . 47 270 Absorbed by Shields . | . . . Core Remaining (%) 90 | 100 81 . Volleys Fired 92 | . 46 46 Largest 2 | . 2 2 Hottest 80 | . 60 80 Shots Fired 168 | . 90 78 Gun 67 | . 5 62 Cannon 97 | . 83 14 Launcher 4 | . 2 2 Special . | . . . Kinetic 148 | . 88 60 Thermal . | . . . Explosive 4 | . 2 2 Electromagnetic 16 | . . 16 Robot Hit Streak 6 | . 4 6 Robot Miss Streak 4 | . 4 3 Penetration Max . | . . . Secondary Targets 2 | . . 2 Max Gunslinging Chain 1 | . . 1 Shots Hit Robots 84 | . 35 49 Core Hits 42 | . 22 20 Critical Kills . | . . . Critical Parts Destroyed . | . . . Critical Strikes 3 | . 2 1 Blast 2 | . 2 . Corrupt 1 | . . 1 Melee Attacks . | . . . Impact . | . . . Slashing . | . . . Piercing . | . . . Sneak Attacks . | . . . Combat Hostiles . | . . . Follow-up Attacks . | . . . Damage Inflicted 1452 | . 668 784 Guns 521 | . 29 492 Cannons 778 | . 624 154 Explosions 138 | . . 138 Melee . | . . . Ramming 15 | . 15 . Kinetic 1170 | . 653 517 Thermal . | . . . Explosive 138 | . . 138 Electromagnetic 129 | . . 129 Impact . | . . . Slashing . | . . . Piercing . | . . . Highest Corruption 16 | . . 16 Average Corruption 15 | . . 15 Corruption Purged . | . . . Corruption Blocked . | . . . Effects 6 | . . 6 Matter Fused 2 | . . 2 Heat Flow Errors 1 | . . 1 Data Loss (minor) 2 | . . 2 Data Loss (major) 1 | . . 1 Overload Shots . | . . . Overflow Damage 18 | . 18 . Projectiles 18 | . 18 . Explosions . | . . . Melee . | . . . Knockbacks 5 | . 5 . Impact . | . . . Kinetic 4 | . 4 . Secondary 1 | . 1 . Self-Inflicted Damage 46 | . 32 14 Shots 2 | . 1 1 Rammed 1 | . 1 . Targets Rammed 1 | . 1 . Kicked . | . . . Crushed . | . . . Highest Temperature 198 | . 36 198 Average Temperature 51 | . 15 68 Received Heat Transfer 738 | . 108 630 Siege Activations . | . . . Martial Activations . | . . . Shielding Activations . | . . . Robots Disrupted . | . . . Combat Hostiles . | . . . Robots Corrupted . | . . . Combat Hostiles . | . . . Parts Fried . | . . . Impact Corruptions . | . . . Robots Melted . | . . . Combat Hostiles . | . . . Parts Melted . | . . . Heat Transferred . | . . . Parts Sabotaged . | . . . Parts Stolen . | . . . Parts Stripped . | . . . Power Chain Reactions . | . . . Alert | -11 -10 -9 ------- Run | Yrd Mat Mat Maximum Alert Level . | . . . Low Security (%) 100 | 100 100 100 Level 1 . | . . . Level 2 . | . . . Level 3 . | . . . Level 4 . | . . . Level 5 . | . . . High Security . | . . . Max Security . | . . . Peak Influence 146 | . 130 146 Initial . | . . . Average 27 | . 26 53 Influence Increases 811 | . 494 317 Destroy 0b10 Robot/C 500 | . 280 220 Destroy 0b10 Robot/NC 40 | . 35 5 Destroy Leader 110 | . 70 40 Trap Triggered on 0b10 10 | . 10 . Successful Hack 17 | . 17 . Disable Machine 75 | . 60 15 Destroy Structure 29 | . 22 7 Lose Combat Pursuer 30 | . . 30 Influence Decreases 665 | . 494 171 Time Decay 570 | . 489 81 Lost Part 95 | . 5 90 Squads Dispatched 2 | . 2 . Investigation . | . . . Extermination . | . . . Reinforcement 2 | . 2 . Assault . | . . . Garrison . | . . . Intercept . | . . . Searches Triggered . | . . . Construction Impeded . | . . . Haulers Reinforced . | . . . Active Scanning Responses . | . . . Cargo Convoy Interrupts . | . . . Stealth | -11 -10 -9 --------- Run | Yrd Mat Mat Distress Signals 1 | . 1 . Communications Jammed . | . . . Distress Signals . | . . . Times Spotted 31 | . 19 12 Peak Tracking Total 5 | . 3 5 Tactical Retreats 1 | . . 1 Traps | -11 -10 -9 ------- Run | Yrd Mat Mat Traps Triggered 1 | . 1 . Indirectly . | . . . Trap Hack Attempts . | . . . Triggered . | . . . Disarmed . | . . . Reprogrammed 1 | . 1 . Reused 1 | . 1 . Traps Extracted . | . . . Installed . | . . . Triggered 1 | . 1 . Machines | -11 -10 -9 ---------- Run | Yrd Mat Mat Machines Disabled 5 | . 4 1 Max in Single Turn 1 | . 1 1 Machines Repaired . | . . . Machines Dismantled . | . . . Machines Sabotaged . | . . . Overloaded Fab Kills . | . . . Hacking | -11 -10 -9 --------- Run | Yrd Mat Mat Machines Accessed 4 | . 4 . Terminals 4 | . 4 . Fabricators . | . . . Repair Stations . | . . . Recycling Units . | . . . Scanalyzers . | . . . Garrison Access . | . . . Total Hacks 7 | . 7 . Successful 6 | . 6 . Failed 1 | . 1 . Catastrophic . | . . . Database Lockouts . | . . . Manual 3 | . 3 . Terminals 7 | . 7 . Fabricators . | . . . Repair Stations . | . . . Recycling Units . | . . . Scanalyzers . | . . . Garrison Access . | . . . Terminal Hacks 3 | . 3 . Reprogram Traps 1 | . 1 . Hauler Manifests 1 | . 1 . Zone Layout 1 | . 1 . Fabricator Hacks . | . . . Repair Station Hacks . | . . . Recycling Unit Hacks . | . . . Scanalyzer . | . . . Garrison Access Hacks . | . . . Unauthorized Hacks 3 | . 3 . Terminals 3 | . 3 . Botnet 3 | . 3 . Fabricators . | . . . Repair Stations . | . . . Recycling Units . | . . . Scanalyzers . | . . . Garrison Access . | . . . Data Cores Recovered 1 | . 1 . Used . | . . . Hacking Detections 2 | . 2 . Full Trace Events 1 | . 1 . Feedback Events . | . . . Feedback Blocked . | . . . Robot Schematics Acquired . | . . . Robots Built . | . . . Authchips . | . . . Time . | . . . Total Robot Build Rating . | . . . Part Schematics Acquired . | . . . Parts Built . | . . . Authchips . | . . . Time . | . . . Total Part Build Rating . | . . . Part Studies Acquired . | . . . Parts Repaired . | . . . Time . | . . . Parts Recycled . | . . . Recycled Matter . | . . . Retrieved Matter . | . . . Retrieved Components . | . . . Parts Scanalyzed . | . . . Part Schematics Acquired . | . . . Parts Damaged . | . . . Bothacking | -11 -10 -9 ------------ Run | Yrd Mat Mat Used RIF Installer . | . . . Robots Hacked . | . . . Non-combat . | . . . Combat . | . . . Robot Hacks Applied . | . . . Relay Couplers Released . | . . . Fabnet Peak Effective % . | . . . Robots Rewired . | . . . Allies Hacked . | . . . Hacks Repelled . | . . . Allies | -11 -10 -9 -------- Run | Yrd Mat Mat Total Allies . | . . . Largest Group . | . . . Highest-Rated Group . | . . . Highest-Rated Ally . | . . . Total Orders . | . . . Ally Attacks . | . . . Total Damage . | . . . Kills . | . . . Allies Corrupted . | . . . Allies Melted . | . . . Intel | -11 -10 -9 ------- Run | Yrd Mat Mat Active Infowar (turns) 2136 | . 2072 64 Sensors 1301 | . 1238 63 Terrain 876 | . 834 42 Robot Analysis Total . | . . . Derelict Logs Recovered . | . . . Drone Launches . | . . . Drone Recoveries . | . . . Exploration | -11 -10 -9 ------------- Run | Yrd Mat Mat Turns Passed 2764 | 64 2491 209 Spaces Moved 874 | 38 825 11 Core 8 | 6 . 2 Treads 862 | 32 825 5 Legs 4 | . . 4 Wheels . | . . . Hover . | . . . Flight . | . . . Fastest Speed 50 | 50 160 240 Average Speed 276 | 145 278 580 Slowest Speed 1500 | 160 320 1500 Overloaded Moves . | . . . Propulsion Burnouts . | . . . Robots Hopped . | . . . Potential Cave-ins . | . . . Cave-ins Triggered . | . . . Exploration Rate (%) 34 | 3 96 4 Regions Visited 2 Branch Regions . Pre-discovered Areas . | . . . Known Exits Taken . | . . . Unknown Exits Taken 2 | 1 1 . Scrap Searched . | . . . Spaces Dug . | . . . Terrain Destroyed 21 | . 16 5 Melee . | . . . Projectile . | . . . AOE 21 | . 16 5 Terrain Rammed . | . . . Walls Destroyed . | . . . Machines Disabled . | . . . Actions | -11 -10 -9 --------- Run | Yrd Mat Mat Total 1050 | 44 929 77 Wait 39 | . 30 9 Move 872 | 37 824 11 Hop . | . . . Pick Up 15 | 1 14 . Fast Attach 11 | 6 3 2 Attach 10 | . 1 9 Detach 1 | . 1 . Swap 6 | . 6 . Drop 3 | . 3 . Fire 92 | . 46 46 Melee . | . . . Ram . | . . . Kick . | . . . Crush 1 | . 1 . Escape Stasis . | . . . Rewire . | . . . Trap . | . . . Miscellaneous . | . . . Route ------- -11/Scrapyard -10/Materials (discovered 4 exits: [*Mat x3] / [*Min]) -9/Materials History --------- Turn | Location | Event 16 | -11/Scrapyard | Discovered new exit (range 15) 65 | -11/Scrapyard | Entered Materials 66 | -10/Materials | Met a group of wandering Federalists 255 | -10/Materials | Discovered new exit (range 16) 313 | -10/Materials | Build established: Mutant 601 | -10/Materials | Discovered new exit (range 12) 1049 | -10/Materials | Discovered new exit (range 16) 1827 | -10/Materials | Discovered new exit (range 16) 2556 | -10/Materials | Entered another Materials area 2556 | -9/Materials | Evolved 2 slots: Propulsion x1, Utility x1 2599 | -9/Materials | System corruption reached 10% 2660 | -9/Materials | Lost 10 parts (1p3n2u4w) 2723 | -9/Materials | Core integrity fell below 50% 2765 | -9/Materials | Self-destructed Last Messages --------------- 02710_ R-06 Scavenger collects Ion Engine. 02713_ Acquired Aluminum Leg. 02717_ R-06 Scavenger collects Corrupted Ion Engine. 02719_ R-06 Scavenger collects Particle Gun. 02721_ R-06 Scavenger collects Sml. Laser. 02730_ R-06 Scavenger collects Corrupted Aluminum Leg. 02738_ K-01 Serf destroyed. 02740_ System corrupted: Component data lost. 02740_ R-06 Scavenger collects Wheel. 02744_ R-06 Scavenger collects Lgt. Ion Engine. 02746_ U-05 Engineer builds a Door. 02749_ G-34 Mercenary destroyed. 02758_ Assault Rifle destroyed. 02759_ Aluminum Leg destroyed. 02760_ Assault Rifle destroyed. 02761_ U-05 Engineer destroyed. 02761_ G-47 Trooper destroyed. 02761_ Atomic Centrifuge disabled. 02763_ G-34 Mercenary destroyed. 02764_ System corrupted: Matter fused (-9). Map ----- +----------------------------------------------------+ | ???????????????????????????????????????? | | ???????????????????????????????????????? | | ???????????????????????????????????????? | | ???????????????????????????????????????? | | ???????????????????????????????????????? | | ???????????????????????????????????????? | | ???????????????????????????????????????? | | ???????????????????????????????????????? | | ???????????????????????????????????????? | | ????????????????????????##?##??????????? | | ???????????????????????# ? #?????????? | | ???????????????????????# #??#??????? | | ???????????????????????# " ?????????? | | ???????????????????????? ?????#????? | | ???????????????????????? ??????????? | | ?????????????????????#??# #??????????? | | ????????????????????????# #??????????? | | ??????????????????? ????# #?????#????? | | ?????????????????#??????# #??????????? | | ?????????????????# ?????# #??????????# | | ?????????????????# ????# #??????????? | | ??????????"T" ???# ####% #####??????? | | ????????? # =%== % #??????? | | ?????????? u % *%=% % %% #??????? | | ?????????????????# ! % #??????? | | ?????????????????# @! #####??????? | | ?????????????????# " !!%#?????????#? | | ?????????????????# " % !! #??????????? | | ?????????????????# " [** #??????????? | | ?????????????????# % = #??????"???? | | ?????????????????# ! +??????????? | | ?????????????????# # ????"????? | | ?????????????????# ## ????????? | | ?????????????????# ##### #?? ????????? | | ?????????????????# ????# #??##????#??? | | ?????????????????+ ?????#+#?#?????????? | | ?????????????????# ?????? ???????????? | | ?????????????????# ??????? ???????????? | | ?????????????????????????? ???????????? | | ?????????????????????????? "???????????? | | ???????????????????????????????????????? | | ???????????????????????????????????????? | | ???????????????????????????????????????? | | ???????????????????????????????????????? | | ???????????????????????????????????????? | | ???????????????????????????????????????? | | ???????????????????????????????????????? | | ???????????????????????????????????????? | | ???????????????????????????????????????? | | ???????????????????????????????????????? | +----------------------------------------------------+ Best States ------------- Heat Dissipation 28 Energy Generation 10 Energy Capacity 250 Matter Stores 300 Matter Capacity 300 Sight Range 16 Robot Scan Range 14 Terrain Scan Range 14 Terrain Scan Density 10 Evasion (%) 40 Recoil Reduction 3 Item Schematics ----------------- None Robot Schematics ------------------ None Fabricated ------------ Nothing Repaired ---------- Nothing Studied --------- None Alien Tech Used ----------------- None Achievements -------------- None Challenges ------------ None Game ------ Seed RelayPlatingShell Manual? 0 Play Time 00:10:36 Cumulative 80.8 hours Start 2026.07.06 @ 00:01:39 End 2026.07.06 @ 00:10:50 Sessions 1 Manual Loads 0 Difficulty Rogue Special Mode None Game No. 138 Rogue 138 Adventurer 0 Explorer 0 Win Type - Total 0 Types 0/0/0/0/0/0/0/0/0/0 Lore% 21 Gallery% 31 Achievement% 27 Wizard Run 0 Options --------- Layout 0 ASCII 0 Keyboard 0 Movement Mouse Keybinds 0 Fullscreen 1 Font 24/Smallcaps Map View 38x25 Zoom Use 96% Tactical HUD 1 Map Filters NONE Filters NONE Steam 1 RUN: 8bdda02d-4249-483a-9aa8-eaa384e780f6